Workbook

Sheet Sheet1
A1: 附件：
A2: 从江县事业单位2023年第二批公开招聘工作人员面试成绩、综合成绩及排名汇总表
A3: 序号 | B3: 姓名 | C3: 笔试准考证号 | D3: 招聘单位名称 | E3: 招聘职位类型 | F3: 招聘岗位代码 | G3: 笔试成绩 | I3: 面试成绩 | K3: 综合成绩 | L3: 综合成绩排名 | M3: 备注
G4: 成绩 | H4: 折算成绩（50%） | I4: 成绩 | J4: 折算成绩（50%）
A5: 1 | B5: 吴邦瑶 | C5: 23120100123 | D5: 从江县国有林场 | E5: 管理岗位 | F5: 12001 | G5: 85.64 | H5: 42.82 | I5: 81 | J5: 40.5 | K5: =H5+J5 -> 83.32 | L5: 1
A6: 2 | B6: 莫银克 | C6: 23120100304 | D6: 从江县国有林场 | E6: 管理岗位 | F6: 12001 | G6: 85.78 | H6: 42.89 | I6: 80 | J6: 40 | K6: =H6+J6 -> 82.89 | L6: 2
A7: 3 | B7: 吴玉江 | C7: 23120100103 | D7: 从江县国有林场 | E7: 管理岗位 | F7: 12001 | G7: 86.59 | H7: 43.3 | I7: 77.6 | J7: 38.8 | K7: 82.1 | L7: 3
A8: 4 | B8: 吴银朱 | C8: 23120100401 | D8: 从江县机要保密技术服务中心 | E8: 管理岗位 | F8: 12002 | G8: 85.83 | H8: 42.92 | I8: 80 | J8: 40 | K8: 82.92 | L8: 1
A9: 5 | B9: 吴明洋 | C9: 23120100328 | D9: 从江县机要保密技术服务中心 | E9: 管理岗位 | F9: 12002 | G9: 85.44 | H9: 42.72 | I9: 75.2 | J9: 37.6 | K9: 80.32 | L9: 2
A10: 6 | B10: 吴迪 | C10: 23120100402 | D10: 从江县机要保密技术服务中心 | E10: 管理岗位 | F10: 12002 | G10: 82.24 | H10: 41.12 | I10: 76 | J10: 38 | K10: 79.12 | L10: 3
A11: 7 | B11: 杨行军 | C11: 23120100416 | D11: 从江县丙妹镇应急管理站 | E11: 管理岗位 | F11: 12003 | G11: 81.96 | H11: 40.98 | I11: 79.2 | J11: 39.6 | K11: 80.58 | L11: 1
A12: 8 | B12: 吴昌文 | C12: 23120100410 | D12: 从江县丙妹镇应急管理站 | E12: 管理岗位 | F12: 12003 | G12: 79.18 | H12: 39.59 | I12: 77 | J12: 38.5 | K12: 78.09 | L12: 2
A13: 9 | B13: 夏子结 | C13: 23120100414 | D13: 从江县丙妹镇应急管理站 | E13: 管理岗位 | F13: 12003 | G13: 76.71 | H13: 38.36 | I13: 60.6 | J13: 30.3 | K13: 68.66 | L13: 3
A14: 10 | B14: 叶德含 | C14: 23120100426 | D14: 从江县丙妹镇应急管理站 | E14: 管理岗位 | F14: 12004 | G14: 88.5 | H14: 44.25 | I14: 79.8 | J14: 39.9 | K14: 84.15 | L14: 1
A15: 11 | B15: 石玉英 | C15: 23120100503 | D15: 从江县丙妹镇应急管理站 | E15: 管理岗位 | F15: 12004 | G15: 83.28 | H15: 41.64 | I15: 82.8 | J15: 41.4 | K15: 83.04 | L15: 2
A16: 12 | B16: 牛美仙 | C16: 23120100502 | D16: 从江县丙妹镇应急管理站 | E16: 管理岗位 | F16: 12004 | G16: 83.92 | H16: 41.96 | I16: 75.8 | J16: 37.9 | K16: 79.86 | L16: 3
A17: 13 | B17: 田欢 | C17: 23120100602 | D17: 从江县粮食储备服务中心 | E17: 管理岗位 | F17: 12005 | G17: 90.24 | H17: 45.12 | I17: 78 | J17: 39 | K17: 84.12 | L17: 1
A18: 14 | B18: 杨威 | C18: 23120100521 | D18: 从江县粮食储备服务中心 | E18: 管理岗位 | F18: 12005 | G18: 85.89 | H18: 42.95 | I18: 77.2 | J18: 38.6 | K18: 81.55 | L18: 2
A19: 15 | B19: 王江鹏 | C19: 23120100529 | D19: 从江县粮食储备服务中心 | E19: 管理岗位 | F19: 12005 | G19: 82.8 | H19: 41.4 | I19: 76.6 | J19: 38.3 | K19: 79.7 | L19: 3
A20: 16 | B20: 陆媛媛 | C20: 23120100618 | D20: 从江县粮食储备服务中心 | E20: 管理岗位 | F20: 12005 | G20: 82.8 | H20: 41.4 | I20: 76.6 | J20: 38.3 | K20: 79.7 | L20: 3
A21: 17 | B21: 吴雪飘 | C21: 23120100717 | D21: 从江县贯洞镇人力资源和社会保障服务中心 | E21: 管理岗位 | F21: 12006 | G21: 83.73 | H21: 41.87 | I21: 80 | J21: 40 | K21: 81.87 | L21: 1
A22: 18 | B22: 石文艳 | C22: 23120100720 | D22: 从江县贯洞镇人力资源和社会保障服务中心 | E22: 管理岗位 | F22: 12006 | G22: 85.38 | H22: 42.69 | I22: 77.8 | J22: 38.9 | K22: 81.59 | L22: 2
A23: 19 | B23: 赢海霞 | C23: 23120100726 | D23: 从江县贯洞镇人力资源和社会保障服务中心 | E23: 管理岗位 | F23: 12006 | G23: 80.06 | H23: 40.03 | I23: 79.2 | J23: 39.6 | K23: 79.63 | L23: 3
A24: 20 | B24: 韦胜贞 | C24: 23120100805 | D24: 从江县国有林场 | E24: 管理岗位 | F24: 12007 | G24: 83.81 | H24: 41.91 | I24: 82 | J24: 41 | K24: 82.91 | L24: 1
A25: 21 | B25: 潘成慧 | C25: 23120100815 | D25: 从江县国有林场 | E25: 管理岗位 | F25: 12007 | G25: 87.72 | H25: 43.86 | I25: 76 | J25: 38 | K25: 81.86 | L25: 2
A26: 22 | B26: 吴雅笛 | C26: 23120100907 | D26: 从江县国有林场 | E26: 管理岗位 | F26: 12007 | G26: 84.88 | H26: 42.44 | I26: 77.6 | J26: 38.8 | K26: 81.24 | L26: 3
A27: 23 | B27: 尧奂萍 | C27: 23120100923 | D27: 从江县桥头堡综合服务中心 | E27: 管理岗位 | F27: 12008 | G27: 91.33 | H27: 45.67 | I27: 82.8 | J27: 41.4 | K27: 87.07 | L27: 1
A28: 24 | B28: 陆渊 | C28: 23120100913 | D28: 从江县桥头堡综合服务中心 | E28: 管理岗位 | F28: 12008 | G28: 81.2 | H28: 40.6 | I28: 77 | J28: 38.5 | K28: 79.1 | L28: 2
A29: 25 | B29: 石英武 | C29: 23120100917 | D29: 从江县桥头堡综合服务中心 | E29: 管理岗位 | F29: 12008 | G29: 79.32 | H29: 39.66 | I29: 70.8 | J29: 35.4 | K29: 75.06 | L29: 3
A30: 26 | B30: 陆香琼 | C30: 23120101001 | D30: 从江县洛香镇综治中心 | E30: 管理岗位 | F30: 12009 | G30: 84.01 | H30: 42.01 | I30: 81 | J30: 40.5 | K30: 82.51 | L30: 1
A31: 27 | B31: 吴正东 | C31: 23120100930 | D31: 从江县洛香镇综治中心 | E31: 管理岗位 | F31: 12009 | G31: 83.93 | H31: 41.97 | I31: 78 | J31: 39 | K31: 80.97 | L31: 2
A32: 28 | B32: 石海仟 | C32: 23120100928 | D32: 从江县洛香镇综治中心 | E32: 管理岗位 | F32: 12009 | G32: 83.79 | H32: 41.9 | I32: 77 | J32: 38.5 | K32: 80.4 | L32: 3
A33: 29 | B33: 陆志梨 | C33: 23120101029 | D33: 从江县洛香镇农业综合服务中心 | E33: 管理岗位 | F33: 12010 | G33: 89.93 | H33: 44.97 | I33: 80.2 | J33: 40.1 | K33: 85.07 | L33: 1
A34: 30 | B34: 李慧林 | C34: 23120101028 | D34: 从江县洛香镇农业综合服务中心 | E34: 管理岗位 | F34: 12010 | G34: 83.05 | H34: 41.53 | I34: 76.8 | J34: 38.4 | K34: 79.93 | L34: 2
A35: 31 | B35: 杨青 | C35: 23120101019 | D35: 从江县洛香镇农业综合服务中心 | E35: 管理岗位 | F35: 12010 | G35: 78.06 | H35: 39.03 | I35: 81.8 | J35: 40.9 | K35: 79.93 | L35: 2
A36: 32 | B36: 吴红彬 | C36: 23120101110 | D36: 从江县干部信息中心 | E36: 管理岗位 | F36: 12011 | G36: 90.21 | H36: 45.11 | I36: 88 | J36: 44 | K36: 89.11 | L36: 1
A37: 33 | B37: 孟文艳 | C37: 23120101108 | D37: 从江县干部信息中心 | E37: 管理岗位 | F37: 12011 | G37: 86.51 | H37: 43.26 | I37: 83 | J37: 41.5 | K37: 84.76 | L37: 2
A38: 34 | B38: 杨耀凯 | C38: 23120101103 | D38: 从江县干部信息中心 | E38: 管理岗位 | F38: 12011 | G38: 84.6 | H38: 42.3 | I38: 75 | J38: 37.5 | K38: 79.8 | L38: 3
A39: 35 | B39: 潘成勇 | C39: 23120101205 | D39: 从江县西山镇残疾人联合会 | E39: 管理岗位 | F39: 12012 | G39: 86.14 | H39: 43.07 | I39: 90.8 | J39: 45.4 | K39: 88.47 | L39: 1
A40: 36 | B40: 韦艳金 | C40: 23120101130 | D40: 从江县西山镇残疾人联合会 | E40: 管理岗位 | F40: 12012 | G40: 86.39 | H40: 43.2 | I40: 85.2 | J40: 42.6 | K40: 85.8 | L40: 2
A41: 37 | B41: 梁海琪 | C41: 23120101121 | D41: 从江县西山镇残疾人联合会 | E41: 管理岗位 | F41: 12012 | G41: 83.28 | H41: 41.64 | I41: 80.2 | J41: 40.1 | K41: 81.74 | L41: 3
A42: 38 | B42: 宋美萍 | C42: 23120101220 | D42: 从江县下江镇文化科技社会保障服务中心 | E42: 管理岗位 | F42: 12013 | G42: 91.02 | H42: 45.51 | I42: 87.4 | J42: 43.7 | K42: 89.21 | L42: 1
A43: 39 | B43: 陆颖 | C43: 23120101226 | D43: 从江县下江镇文化科技社会保障服务中心 | E43: 管理岗位 | F43: 12013 | G43: 85.95 | H43: 42.98 | I43: 88 | J43: 44 | K43: 86.98 | L43: 2
A44: 40 | B44: 石念 | C44: 23120101223 | D44: 从江县下江镇文化科技社会保障服务中心 | E44: 管理岗位 | F44: 12013 | G44: 83.73 | H44: 41.87 | I44: 84.2 | J44: 42.1 | K44: 83.97 | L44: 3
A45: 41 | B45: 晋达茂 | C45: 23120101305 | D45: 从江县下江镇财政所 | E45: 管理岗位 | F45: 12014 | G45: 94.05 | H45: 47.03 | I45: 82.8 | J45: 41.4 | K45: 88.43 | L45: 1
A46: 42 | B46: 莫冬丽 | C46: 23120101304 | D46: 从江县下江镇财政所 | E46: 管理岗位 | F46: 12014 | G46: 88.1 | H46: 44.05 | I46: 85.2 | J46: 42.6 | K46: 86.65 | L46: 2
A47: 43 | B47: 潘义财 | C47: 23120101228 | D47: 从江县下江镇财政所 | E47: 管理岗位 | F47: 12014 | G47: 89.45 | H47: 44.73 | I47: 82.4 | J47: 41.2 | K47: 85.93 | L47: 3
A48: 44 | B48: 杨玉英 | C48: 23120101316 | D48: 从江县老干部活动服务中心 | E48: 管理岗位 | F48: 12015 | G48: 87.38 | H48: 43.69 | I48: 86.2 | J48: 43.1 | K48: 86.79 | L48: 1
A49: 45 | B49: 吴冉冉 | C49: 23120101306 | D49: 从江县老干部活动服务中心 | E49: 管理岗位 | F49: 12015 | G49: 92.09 | H49: 46.05 | I49: 79 | J49: 39.5 | K49: 85.55 | L49: 2
A50: 46 | B50: 张恩辉 | C50: 23120101311 | D50: 从江县老干部活动服务中心 | E50: 管理岗位 | F50: 12015 | G50: 85.13 | H50: 42.57 | I50: 80.8 | J50: 40.4 | K50: 82.97 | L50: 3
A51: 47 | B51: 练招财 | C51: 23120101324 | D51: 从江县老干部活动服务中心 | E51: 管理岗位 | F51: 12016 | G51: 91.78 | H51: 45.89 | I51: 84.8 | J51: 42.4 | K51: 88.29 | L51: 1
A52: 48 | B52: 叶泽玲 | C52: 23120101401 | D52: 从江县老干部活动服务中心 | E52: 管理岗位 | F52: 12016 | G52: 84.82 | H52: 42.41 | I52: 87.2 | J52: 43.6 | K52: 86.01 | L52: 2
A53: 49 | B53: 龙夏佳 | C53: 23120101323 | D53: 从江县老干部活动服务中心 | E53: 管理岗位 | F53: 12016 | G53: 83.98 | H53: 41.99 | I53: 86.2 | J53: 43.1 | K53: 85.09 | L53: 3
A54: 50 | B54: 肖佑坤 | C54: 23120101412 | D54: 从江县房地产服务中心 | E54: 管理岗位 | F54: 12017 | G54: 86.84 | H54: 43.42 | I54: 86.8 | J54: 43.4 | K54: 86.82 | L54: 1
A55: 51 | B55: 吴帮宇 | C55: 23120101427 | D55: 从江县房地产服务中心 | E55: 管理岗位 | F55: 12017 | G55: 87.21 | H55: 43.61 | I55: 85.4 | J55: 42.7 | K55: 86.31 | L55: 2
A56: 52 | B56: 黄达林 | C56: 23120101420 | D56: 从江县房地产服务中心 | E56: 管理岗位 | F56: 12017 | G56: 79.24 | H56: 39.62 | I56: 85.2 | J56: 42.6 | K56: 82.22 | L56: 3
A57: 53 | B57: 吴家章 | C57: 23120101511 | D57: 从江县动物卫生服务站 | E57: 管理岗位 | F57: 12018 | G57: 87.29 | H57: 43.65 | I57: 81.4 | J57: 40.7 | K57: 84.35 | L57: 1
A58: 54 | B58: 潘发光 | C58: 23120101429 | D58: 从江县动物卫生服务站 | E58: 管理岗位 | F58: 12018 | G58: 79.3 | H58: 39.65 | I58: 82.4 | J58: 41.2 | K58: 80.85 | L58: 2
A59: 55 | B59: 肖杰 | C59: 23120101509 | D59: 从江县动物卫生服务站 | E59: 管理岗位 | F59: 12018 | G59: 86.71 | H59: 43.36 | I59: 67.8 | J59: 33.9 | K59: 77.26 | L59: 3
A60: 56 | B60: 蒙安明 | C60: 23120101526 | D60: 从江县停洞镇财政所 | E60: 管理岗位 | F60: 12019 | G60: 81.34 | H60: 40.67 | I60: 81 | J60: 40.5 | K60: 81.17 | L60: 1
A61: 57 | B61: 陈远科 | C61: 23120101516 | D61: 从江县停洞镇财政所 | E61: 管理岗位 | F61: 12019 | G61: 79.8 | H61: 39.9 | I61: 71.6 | J61: 35.8 | K61: 75.7 | L61: 2
A62: 58 | B62: 姚忠文 | C62: 23120101529 | D62: 从江县停洞镇财政所 | E62: 管理岗位 | F62: 12019 | G62: 77.53 | H62: 38.77 | I62: 73.2 | J62: 36.6 | K62: 75.37 | L62: 3
A63: 59 | B63: 余良 | C63: 23120101515 | D63: 从江县停洞镇财政所 | E63: 管理岗位 | F63: 12019 | G63: 77.53 | H63: 38.77 | I63: 72 | J63: 36 | K63: 74.77 | L63: 4
A64: 60 | B64: 吴玉艳 | C64: 23120101609 | D64: 从江县人民政府办公室信息管理中心 | E64: 管理岗位 | F64: 12020 | G64: 90.32 | H64: 45.16 | I64: 86.8 | J64: 43.4 | K64: 88.56 | L64: 1
A65: 61 | B65: 梁铭祥 | C65: 23120101605 | D65: 从江县人民政府办公室信息管理中心 | E65: 管理岗位 | F65: 12020 | G65: 90.24 | H65: 45.12 | I65: 86.8 | J65: 43.4 | K65: 88.52 | L65: 2
A66: 62 | B66: 滕学娟 | C66: 23120101601 | D66: 从江县人民政府办公室信息管理中心 | E66: 管理岗位 | F66: 12020 | G66: 86.84 | H66: 43.42 | I66: 81.4 | J66: 40.7 | K66: 84.12 | L66: 3
A67: 63 | B67: 吴琪 | C67: 23120101629 | D67: 从江县交通建设发展中心 | E67: 管理岗位 | F67: 12021 | G67: 81.65 | H67: 40.83 | I67: 86.2 | J67: 43.1 | K67: 83.93 | L67: 1
A68: 64 | B68: 梁玉桃 | C68: 23120101618 | D68: 从江县交通建设发展中心 | E68: 管理岗位 | F68: 12021 | G68: 85.58 | H68: 42.79 | I68: 80 | J68: 40 | K68: 82.79 | L68: 2
A69: 65 | B69: 明继丽 | C69: 23120101617 | D69: 从江县交通建设发展中心 | E69: 管理岗位 | F69: 12021 | G69: 82.21 | H69: 41.11 | I69: 83 | J69: 41.5 | K69: 82.61 | L69: 3
A70: 66 | B70: 杨光龙 | C70: 23120101703 | D70: 从江县香猪产业发展中心 | E70: 管理岗位 | F70: 12022 | G70: 91.7 | H70: 45.85 | I70: 83.6 | J70: 41.8 | K70: =H70+J70 -> 87.65 | L70: 1
A71: 67 | B71: 石文鹏 | C71: 23120101704 | D71: 从江县香猪产业发展中心 | E71: 管理岗位 | F71: 12022 | G71: 86.65 | H71: 43.33 | I71: 83.4 | J71: 41.7 | K71: 85.03 | L71: 2
A72: 68 | B72: 朱一举 | C72: 23120101708 | D72: 从江县香猪产业发展中心 | E72: 管理岗位 | F72: 12022 | G72: 84.74 | H72: 42.37 | I72: 83.4 | J72: 41.7 | K72: 84.07 | L72: 3
A73: 69 | B73: 梁佳雨 | C73: 23120101726 | D73: 从江县宰便镇退役军人服务站 | E73: 管理岗位 | F73: 12023 | G73: 80.19 | H73: 40.1 | I73: 85 | J73: 42.5 | K73: 82.6 | L73: 1
A74: 70 | B74: 吴永媛 | C74: 23120101723 | D74: 从江县宰便镇退役军人服务站 | E74: 管理岗位 | F74: 12023 | G74: 84.51 | H74: 42.26 | I74: 75.2 | J74: 37.6 | K74: 79.86 | L74: 2
A75: 71 | B75: 兰云战 | C75: 23120101724 | D75: 从江县宰便镇退役军人服务站 | E75: 管理岗位 | F75: 12023 | G75: 79.57 | H75: 39.79 | I75: 76.4 | J75: 38.2 | K75: 77.99 | L75: 3
A76: 72 | B76: 龙辉 | C76: 23120101821 | D76: 从江县往洞镇国土资源所 | E76: 管理岗位 | F76: 12024 | G76: 81.23 | H76: 40.62 | I76: 85.6 | J76: 42.8 | K76: 83.42 | L76: 1
A77: 73 | B77: 吴永霞 | C77: 23120101820 | D77: 从江县往洞镇国土资源所 | E77: 管理岗位 | F77: 12024 | G77: 85.13 | H77: 42.57 | I77: 80 | J77: 40 | K77: 82.57 | L77: 2
A78: 74 | B78: 王支花 | C78: 23120101806 | D78: 从江县往洞镇国土资源所 | E78: 管理岗位 | F78: 12024 | G78: 83.53 | H78: 41.77 | I78: 81 | J78: 40.5 | K78: 82.27 | L78: 3
A79: 75 | B79: 石桂英 | C79: 23120101909 | D79: 从江县丙妹镇国土资源所 | E79: 管理岗位 | F79: 12025 | G79: 87.09 | H79: 43.55 | I79: 81 | J79: 40.5 | K79: 84.05 | L79: 1
A80: 76 | B80: 李青云 | C80: 23120101824 | D80: 从江县丙妹镇国土资源所 | E80: 管理岗位 | F80: 12025 | G80: 83.11 | H80: 41.56 | I80: 84.4 | J80: 42.2 | K80: 83.76 | L80: 2
A81: 77 | B81: 吴贵保 | C81: 23120101905 | D81: 从江县丙妹镇国土资源所 | E81: 管理岗位 | F81: 12025 | G81: 82.66 | H81: 41.33 | I81: 76.6 | J81: 38.3 | K81: 79.63 | L81: 3
A82: 78 | B82: 黄富安 | C82: 23120101923 | D82: 从江县科学技术服务中心 | E82: 管理岗位 | F82: 12026 | G82: 85.81 | H82: 42.91 | I82: 82.2 | J82: 41.1 | K82: 84.01 | L82: 1
A83: 79 | B83: 陈腾慧 | C83: 23120101924 | D83: 从江县科学技术服务中心 | E83: 管理岗位 | F83: 12026 | G83: 87.77 | H83: 43.89 | I83: 80.2 | J83: 40.1 | K83: 83.99 | L83: 2
A84: 80 | B84: 姚勋 | C84: 23120101917 | D84: 从江县科学技术服务中心 | E84: 管理岗位 | F84: 12026 | G84: 85.44 | H84: 42.72 | I84: 74.4 | J84: 37.2 | K84: 79.92 | L84: 3
A85: 81 | B85: 杨逍 | C85: 23120102011 | D85: 从江县教师发展中心 | E85: 管理岗位 | F85: 12027 | G85: 90.63 | H85: 45.32 | I85: 85.6 | J85: 42.8 | K85: 88.12 | L85: 1
A86: 82 | B86: 粟晶晶 | C86: 23120102002 | D86: 从江县教师发展中心 | E86: 管理岗位 | F86: 12027 | G86: 88.22 | H86: 44.11 | I86: 83.4 | J86: 41.7 | K86: 85.81 | L86: 2
A87: 83 | B87: 张巨中 | C87: 23120102003 | D87: 从江县教师发展中心 | E87: 管理岗位 | F87: 12027 | G87: 83.22 | H87: 41.61 | I87: 69.6 | J87: 34.8 | K87: 76.41 | L87: 3
A88: 84 | B88: 范黎苏 | C88: 23120102108 | D88: 从江县目标绩效考核服务中心 | E88: 管理岗位 | F88: 12028 | G88: 82.83 | H88: 41.42 | I88: 86 | J88: 43 | K88: 84.42 | L88: 1
A89: 85 | B89: 潘发荣 | C89: 23120102027 | D89: 从江县目标绩效考核服务中心 | E89: 管理岗位 | F89: 12028 | G89: 81.71 | H89: 40.86 | I89: 85.4 | J89: 42.7 | K89: 83.56 | L89: 2
A90: 86 | B90: 赵美兰 | C90: 23120102104 | D90: 从江县目标绩效考核服务中心 | E90: 管理岗位 | F90: 12028 | G90: 84.12 | H90: 42.06 | I90: 77.2 | J90: 38.6 | K90: 80.66 | L90: 3
A91: 87 | B91: 潘云慧 | C91: 23120102110 | D91: 从江县目标绩效考核服务中心 | E91: 管理岗位 | F91: 12029 | G91: 88.41 | H91: 44.21 | I91: 85.8 | J91: 42.9 | K91: 87.11 | L91: 1
A92: 88 | B92: 李卫 | C92: 23120102113 | D92: 从江县目标绩效考核服务中心 | E92: 管理岗位 | F92: 12029 | G92: 87.01 | H92: 43.51 | I92: 84 | J92: 42 | K92: 85.51 | L92: 2
A93: 89 | B93: 潘德意 | C93: 23120102120 | D93: 从江县目标绩效考核服务中心 | E93: 管理岗位 | F93: 12029 | G93: 81.51 | H93: 40.76 | I93: 83.6 | J93: 41.8 | K93: 82.56 | L93: 3
A94: 90 | B94: 黄海兰 | C94: 23120102128 | D94: 从江县东朗镇政务服务中心 | E94: 管理岗位 | F94: 12030 | G94: 77.86 | H94: 38.93 | I94: 84.2 | J94: 42.1 | K94: 81.03 | L94: 1
A95: 91 | B95: 孟凡华 | C95: 23120102201 | D95: 从江县东朗镇政务服务中心 | E95: 管理岗位 | F95: 12030 | G95: 57.38 | H95: 28.69 | I95: 73.4 | J95: 36.7 | K95: 65.39 | L95: 2
A96: 92 | B96: 柴秀珍 | C96: 23120102212 | D96: 从江县东朗镇退役军人服务站 | E96: 管理岗位 | F96: 12031 | G96: 85.44 | H96: 42.72 | I96: 83.8 | J96: 41.9 | K96: 84.62 | L96: 1
A97: 93 | B97: 石休祥 | C97: 23120102207 | D97: 从江县东朗镇退役军人服务站 | E97: 管理岗位 | F97: 12031 | G97: 85.05 | H97: 42.53 | I97: 82.2 | J97: 41.1 | K97: 83.63 | L97: 2
A98: 94 | B98: 石华智 | C98: 23120102202 | D98: 从江县东朗镇退役军人服务站 | E98: 管理岗位 | F98: 12031 | G98: 83.73 | H98: 41.87 | I98: 77 | J98: 38.5 | K98: 80.37 | L98: 3
A99: 95 | B99: 石晓青 | C99: 23120102224 | D99: 从江县国土空间规划中心 | E99: 管理岗位 | F99: 12032 | G99: 84.18 | H99: 42.09 | I99: 85 | J99: 42.5 | K99: 84.59 | L99: 1
A100: 96 | B100: 朱文辉 | C100: 23120102222 | D100: 从江县国土空间规划中心 | E100: 管理岗位 | F100: 12032 | G100: 77.3 | H100: 38.65 | I100: 78.6 | J100: 39.3 | K100: 77.95 | L100: 2
A101: 97 | B101: 高梅 | C101: 23120102302 | D101: 从江县国土空间规划中心 | E101: 管理岗位 | F101: 12032 | G101: 77.02 | H101: 38.51 | I101: 78 | J101: 39 | K101: 77.51 | L101: 3
A102: 98 | B102: 杨长发 | C102: 23120102313 | D102: 从江县林下经济发展中心 | E102: 管理岗位 | F102: 12033 | G102: 84.88 | H102: 42.44 | I102: 82.2 | J102: 41.1 | K102: 83.54 | L102: 1
A103: 99 | B103: 潘旭斌 | C103: 23120102311 | D103: 从江县林下经济发展中心 | E103: 管理岗位 | F103: 12033 | G103: 81.57 | H103: 40.79 | I103: 81.2 | J103: 40.6 | K103: 81.39 | L103: 2
A104: 100 | B104: 潘玉荣 | C104: 23120102307 | D104: 从江县林下经济发展中心 | E104: 管理岗位 | F104: 12033 | G104: 81.82 | H104: 40.91 | I104: 80.2 | J104: 40.1 | K104: 81.01 | L104: 3
A105: 101 | B105: 潘蒙谱 | C105: 23120102329 | D105: 从江县秀塘壮族乡交通运输管理站 | E105: 管理岗位 | F105: 12034 | G105: 86.14 | H105: 43.07 | I105: 82.4 | J105: 41.2 | K105: 84.27 | L105: 1
A106: 102 | B106: 吴振吉 | C106: 23120102328 | D106: 从江县秀塘壮族乡交通运输管理站 | E106: 管理岗位 | F106: 12034 | G106: 86.26 | H106: 43.13 | I106: 77.8 | J106: 38.9 | K106: 82.03 | L106: 2
A107: 103 | B107: 梁天佳 | C107: 23120102325 | D107: 从江县秀塘壮族乡交通运输管理站 | E107: 管理岗位 | F107: 12034 | G107: 84.01 | H107: 42.01 | I107: 78.6 | J107: 39.3 | K107: 81.31 | L107: 3
A108: 104 | B108: 潘广乐 | C108: 23120102403 | D108: 从江县西山镇交通运输管理站 | E108: 管理岗位 | F108: 12035 | G108: 81.26 | H108: 40.63 | I108: 81 | J108: 40.5 | K108: 81.13 | L108: 1
A109: 105 | B109: 杨忠培 | C109: 23120102402 | D109: 从江县西山镇交通运输管理站 | E109: 管理岗位 | F109: 12035 | G109: 78.34 | H109: 39.17 | I109: 76 | J109: 38 | K109: 77.17 | L109: 2
A110: 106 | B110: 杨忠强 | C110: 23120102405 | D110: 从江县西山镇交通运输管理站 | E110: 管理岗位 | F110: 12035 | G110: 73.35 | H110: 36.68 | I110: 71.6 | J110: 35.8 | K110: 72.48 | L110: 3
A111: 107 | B111: 廖育君 | C111: 23120102412 | D111: 从江县城镇建设站 | E111: 管理岗位 | F111: 12036 | G111: 86.59 | H111: 43.3 | I111: 81 | J111: 40.5 | K111: 83.8 | L111: 1
A112: 108 | B112: 吴青荣 | C112: 23120102418 | D112: 从江县城镇建设站 | E112: 管理岗位 | F112: 12036 | G112: 84.12 | H112: 42.06 | I112: 79 | J112: 39.5 | K112: 81.56 | L112: 2
A113: 109 | B113: 石留江 | C113: 23120102419 | D113: 从江县城镇建设站 | E113: 管理岗位 | F113: 12036 | G113: 81.65 | H113: 40.83 | I113: 78.4 | J113: 39.2 | K113: 80.03 | L113: 3
A114: 110 | B114: 石凯秀 | C114: 23120200105 | D114: 从江县高增乡财政所 | E114: 管理岗位 | F114: 12037 | G114: 82.77 | H114: 41.39 | I114: 82.6 | J114: 41.3 | K114: 82.69 | L114: 1
A115: 111 | B115: 石鹏祥 | C115: 23120200103 | D115: 从江县高增乡财政所 | E115: 管理岗位 | F115: 12037 | G115: 82.86 | H115: 41.43 | I115: 81 | J115: 40.5 | K115: 81.93 | L115: 2
A116: 112 | B116: 潘永超 | C116: 23120102428 | D116: 从江县高增乡财政所 | E116: 管理岗位 | F116: 12037 | G116: 83.87 | H116: 41.94 | I116: 77.6 | J116: 38.8 | K116: 80.74 | L116: 3
A117: 113 | B117: 罗丽娟 | C117: 23120200127 | D117: 从江县基层党建服务中心 | E117: 管理岗位 | F117: 12038 | G117: 89.17 | H117: 44.59 | I117: 82.2 | J117: 41.1 | K117: 85.69 | L117: 1
A118: 114 | B118: 梁旭威 | C118: 23120200117 | D118: 从江县基层党建服务中心 | E118: 管理岗位 | F118: 12038 | G118: 84.32 | H118: 42.16 | I118: 84.2 | J118: 42.1 | K118: 84.26 | L118: 2
A119: 115 | B119: 梁龙前 | C119: 23120200115 | D119: 从江县基层党建服务中心 | E119: 管理岗位 | F119: 12038 | G119: 84.54 | H119: 42.27 | I119: 83.2 | J119: 41.6 | K119: 83.87 | L119: 3
A120: 116 | B120: 吴显春 | C120: 23120200220 | D120: 从江县老干部活动服务中心 | E120: 管理岗位 | F120: 12039 | G120: 89.37 | H120: 44.69 | I120: 76.6 | J120: 38.3 | K120: 82.99 | L120: 1
A121: 117 | B121: 张俊东 | C121: 23120200218 | D121: 从江县老干部活动服务中心 | E121: 管理岗位 | F121: 12039 | G121: 89.23 | H121: 44.62 | I121: 75.8 | J121: 37.9 | K121: 82.52 | L121: 2
A122: 118 | B122: 潘玉荣 | C122: 23120200211 | D122: 从江县老干部活动服务中心 | E122: 管理岗位 | F122: 12039 | G122: 84.12 | H122: 42.06 | I122: 78.2 | J122: 39.1 | K122: 81.16 | L122: 3
A123: 119 | B123: 代丹 | C123: 23120200306 | D123: 从江县人民政府办公室信息管理中心 | E123: 管理岗位 | F123: 12040 | G123: 90.18 | H123: 45.09 | I123: 84.2 | J123: 42.1 | K123: 87.19 | L123: 1
A124: 120 | B124: 梁正瑜 | C124: 23120200308 | D124: 从江县人民政府办公室信息管理中心 | E124: 管理岗位 | F124: 12040 | G124: 90.13 | H124: 45.07 | I124: 82 | J124: 41 | K124: 86.07 | L124: 2
A125: 121 | B125: 李明连 | C125: 23120200301 | D125: 从江县人民政府办公室信息管理中心 | E125: 管理岗位 | F125: 12040 | G125: 85.83 | H125: 42.92 | I125: 81.2 | J125: 40.6 | K125: 83.52 | L125: 3
A126: 122 | B126: 孟芊芊 | C126: 23120200312 | D126: 从江县统计抽样调查中心 | E126: 管理岗位 | F126: 12041 | G126: 84.68 | H126: 42.34 | I126: 89.4 | J126: 44.7 | K126: 87.04 | L126: 1
A127: 123 | B127: 赵秋梅 | C127: 23120200310 | D127: 从江县统计抽样调查中心 | E127: 管理岗位 | F127: 12041 | G127: 82.97 | H127: 41.49 | I127: 缺考
A128: 124 | B128: 吴昌贤 | C128: 23120200314 | D128: 从江县统计抽样调查中心 | E128: 管理岗位 | F128: 12041 | G128: 82.16 | H128: 41.08 | I128: 缺考
A129: 125 | B129: 罗学升 | C129: 23120200405 | D129: 从江县刚边壮族乡林业站 | E129: 管理岗位 | F129: 12042 | G129: 84.12 | H129: 42.06 | I129: 85.6 | J129: 42.8 | K129: =H129+J129 -> 84.86 | L129: 1
A130: 126 | B130: 韦静祥 | C130: 23120200324 | D130: 从江县刚边壮族乡林业站 | E130: 管理岗位 | F130: 12042 | G130: 85.63 | H130: 42.82 | I130: 80.2 | J130: 40.1 | K130: =H130+J130 -> 82.92 | L130: 2
A131: 127 | B131: 杨翠兰 | C131: 23120200406 | D131: 从江县刚边壮族乡林业站 | E131: 管理岗位 | F131: 12042 | G131: 82.72 | H131: 41.36 | I131: 66.2 | J131: 33.1 | K131: 74.46 | L131: 3
A132: 128 | B132: 王明书 | C132: 23120200416 | D132: 从江县刚边壮族乡退役军人服务站 | E132: 管理岗位 | F132: 12043 | G132: 85.89 | H132: 42.95 | I132: 85.4 | J132: 42.7 | K132: 85.65 | L132: 1
A133: 129 | B133: 滚胜福 | C133: 23120200418 | D133: 从江县刚边壮族乡退役军人服务站 | E133: 管理岗位 | F133: 12043 | G133: 87.21 | H133: 43.61 | I133: 81 | J133: 40.5 | K133: 84.11 | L133: 2
A134: 130 | B134: 宋祖凤 | C134: 23120200411 | D134: 从江县刚边壮族乡退役军人服务站 | E134: 管理岗位 | F134: 12043 | G134: 84.57 | H134: 42.29 | I134: 79 | J134: 39.5 | K134: =H134+J134 -> 81.79 | L134: 3
A135: 131 | B135: 严忠慧 | C135: 23120200513 | D135: 从江县水库运行维护中心 | E135: 管理岗位 | F135: 12044 | G135: 82.46 | H135: 41.23 | I135: 88.8 | J135: 44.4 | K135: 85.63 | L135: 1
A136: 132 | B136: 陈金龙 | C136: 23120200511 | D136: 从江县水库运行维护中心 | E136: 管理岗位 | F136: 12044 | G136: 86.96 | H136: 43.48 | I136: 77.4 | J136: 38.7 | K136: 82.18 | L136: 2
A137: 133 | B137: 李江霞 | C137: 23120200502 | D137: 从江县水库运行维护中心 | E137: 管理岗位 | F137: 12044 | G137: 83.03 | H137: 41.52 | I137: 78.8 | J137: 39.4 | K137: 80.92 | L137: 3
A138: 134 | B138: 杨卫安 | C138: 23120200519 | D138: 从江县秀塘壮族乡乡村建设服务中心 | E138: 管理岗位 | F138: 12045 | G138: 76.66 | H138: 38.33 | I138: 88.4 | J138: 44.2 | K138: 82.53 | L138: 1
A139: 135 | B139: 文归航 | C139: 23120200521 | D139: 从江县秀塘壮族乡乡村建设服务中心 | E139: 管理岗位 | F139: 12045 | G139: 74.95 | H139: 37.48 | I139: 77.6 | J139: 38.8 | K139: 76.28 | L139: 2
A140: 136 | B140: 杨再瑜 | C140: 23120200522 | D140: 从江县秀塘壮族乡乡村建设服务中心 | E140: 管理岗位 | F140: 12045 | G140: 59.91 | H140: 29.96 | I140: 66.2 | J140: 33.1 | K140: 63.06 | L140: 3
A141: 137 | B141: 梁正广 | C141: 23120200602 | D141: 从江县国土空间规划中心 | E141: 管理岗位 | F141: 12046 | G141: 90.38 | H141: 45.19 | I141: 81.2 | J141: 40.6 | K141: 85.79 | L141: 1
A142: 138 | B142: 吴毅婕 | C142: 23120200613 | D142: 从江县国土空间规划中心 | E142: 管理岗位 | F142: 12046 | G142: 82.1 | H142: 41.05 | I142: 88.2 | J142: 44.1 | K142: 85.15 | L142: 2
A143: 139 | B143: 王文权 | C143: 23120200606 | D143: 从江县国土空间规划中心 | E143: 管理岗位 | F143: 12046 | G143: 80.93 | H143: 40.47 | I143: 81.4 | J143: 40.7 | K143: 81.17 | L143: 3
A144: 140 | B144: 潘昌杰 | C144: 23120200702 | D144: 从江县果树技术服务中心 | E144: 管理岗位 | F144: 12047 | G144: 85.69 | H144: 42.85 | I144: 84.2 | J144: 42.1 | K144: 84.95 | L144: 1
A145: 141 | B145: 管流香 | C145: 23120200701 | D145: 从江县果树技术服务中心 | E145: 管理岗位 | F145: 12047 | G145: 82.24 | H145: 41.12 | I145: 84.6 | J145: 42.3 | K145: 83.42 | L145: 2
A146: 142 | B146: 刘荣泽 | C146: 23120200625 | D146: 从江县果树技术服务中心 | E146: 管理岗位 | F146: 12047 | G146: 87.91 | H146: 43.96 | I146: 76.8 | J146: 38.4 | K146: 82.36 | L146: 3
A147: 143 | B147: 吴厚翠 | C147: 23120200705 | D147: 从江县加勉乡人力资源和社会保障服务中心 | E147: 管理岗位 | F147: 12048 | G147: 76.15 | H147: 38.08 | I147: 77.8 | J147: 38.9 | K147: 76.98 | L147: 1
A148: 144 | B148: 吴文金 | C148: 23120200706 | D148: 从江县加勉乡人力资源和社会保障服务中心 | E148: 管理岗位 | F148: 12048 | G148: 67.18 | H148: 33.59 | I148: 81.6 | J148: 40.8 | K148: 74.39 | L148: 2
A149: 145 | B149: 龙凡心 | C149: 23120200715 | D149: 从江县加勉乡财政所 | E149: 管理岗位 | F149: 12049 | G149: 89.87 | H149: 44.94 | I149: 84.6 | J149: 42.3 | K149: 87.24 | L149: 1
A150: 146 | B150: 李思盈 | C150: 23120200710 | D150: 从江县加勉乡财政所 | E150: 管理岗位 | F150: 12049 | G150: 87.97 | H150: 43.99 | I150: 85 | J150: 42.5 | K150: 86.49 | L150: 2
A151: 147 | B151: 余新强 | C151: 23120200712 | D151: 从江县加勉乡财政所 | E151: 管理岗位 | F151: 12049 | G151: 85.13 | H151: 42.57 | I151: 64 | J151: 32 | K151: 74.57 | L151: 3
A152: 148 | B152: 袁维 | C152: 23120200805 | D152: 从江县加勉乡应急管理站 | E152: 管理岗位 | F152: 12050 | G152: 81.4 | H152: 40.7 | I152: 89.2 | J152: 44.6 | K152: 85.3 | L152: 1
A153: 149 | B153: 潘云天 | C153: 23120200812 | D153: 从江县加勉乡应急管理站 | E153: 管理岗位 | F153: 12050 | G153: 88.75 | H153: 44.38 | I153: 79.6 | J153: 39.8 | K153: 84.18 | L153: 2
A154: 150 | B154: 张家平 | C154: 23120200810 | D154: 从江县加勉乡应急管理站 | E154: 管理岗位 | F154: 12050 | G154: 81.65 | H154: 40.83 | I154: 78 | J154: 39 | K154: 79.83 | L154: 3
A155: 151 | B155: 邱运慧 | C155: 23120201006 | D155: 从江县妇幼保健院 | E155: 专业技术岗位 | F155: 12051 | G155: 73.29 | H155: 36.65 | I155: 82.6 | J155: 41.3 | K155: 77.95 | L155: 1
A156: 152 | B156: 潘兴桃 | C156: 23120200918 | D156: 从江县妇幼保健院 | E156: 专业技术岗位 | F156: 12051 | G156: 69.5 | H156: 34.75 | I156: 72 | J156: 36 | K156: 70.75 | L156: 2
A157: 153 | B157: 张智创 | C157: 23120200907 | D157: 从江县妇幼保健院 | E157: 专业技术岗位 | F157: 12051 | G157: 71.83 | H157: 35.92 | I157: 缺考
A158: 154 | B158: 兰雄英 | C158: 23120201106 | D158: 从江县往洞镇卫生院 | E158: 专业技术岗位 | F158: 12052 | G158: 74.83 | H158: 37.42 | I158: 82.4 | J158: 41.2 | K158: =H158+J158 -> 78.62 | L158: 1
A159: 155 | B159: 卢永灿 | C159: 23120201016 | D159: 从江县往洞镇卫生院 | E159: 专业技术岗位 | F159: 12052 | G159: 74.1 | H159: 37.05 | I159: 79.6 | J159: 39.8 | K159: =H159+J159 -> 76.85 | L159: 2
A160: 156 | B160: 田茂琴 | C160: 23120201112 | D160: 从江县往洞镇卫生院 | E160: 专业技术岗位 | F160: 12052 | G160: 76.32 | H160: 38.16 | I160: 70.4 | J160: 35.2 | K160: =H160+J160 -> 73.36 | L160: 3
A161: 157 | B161: 张杰杰 | C161: 23120201119 | D161: 从江县往洞镇卫生院 | E161: 专业技术岗位 | F161: 12053 | G161: 81.45 | H161: 40.73 | I161: 75.8 | J161: 37.9 | K161: 78.63 | L161: 1
A162: 158 | B162: 杨豪情 | C162: 23120201121 | D162: 从江县往洞镇卫生院 | E162: 专业技术岗位 | F162: 12053 | G162: 73.43 | H162: 36.72 | I162: 80 | J162: 40 | K162: 76.72 | L162: 2
A163: 159 | B163: 李志雪 | C163: 23120201125 | D163: 从江县往洞镇卫生院 | E163: 专业技术岗位 | F163: 12053 | G163: 70.99 | H163: 35.5 | I163: 70.8 | J163: 35.4 | K163: 70.9 | L163: 3
A164: 160 | B164: 龙婷倩 | C164: 23120201204 | D164: 从江县加鸠镇中心卫生院 | E164: 专业技术岗位 | F164: 12054 | G164: 74.1 | H164: 37.05 | I164: 82.6 | J164: 41.3 | K164: 78.35 | L164: 1
A165: 161 | B165: 杨再贵 | C165: 23120201130 | D165: 从江县加鸠镇中心卫生院 | E165: 专业技术岗位 | F165: 12054 | G165: 73.15 | H165: 36.58 | I165: 76.8 | J165: 38.4 | K165: 74.98 | L165: 2
A166: 162 | B166: 兰金画 | C166: 23120201201 | D166: 从江县加鸠镇中心卫生院 | E166: 专业技术岗位 | F166: 12054 | G166: 71.46 | H166: 35.73 | I166: 缺考
A167: 163 | B167: 李明溪 | C167: 23120201412 | D167: 从江县高增乡卫生院 | E167: 专业技术岗位 | F167: 12055 | G167: 78.03 | H167: 39.02 | I167: 89.2 | J167: 44.6 | K167: 83.62 | L167: 1
A168: 164 | B168: 梁文妍 | C168: 23120201321 | D168: 从江县高增乡卫生院 | E168: 专业技术岗位 | F168: 12055 | G168: 77.84 | H168: 38.92 | I168: 68 | J168: 34 | K168: 72.92 | L168: 2
A169: 165 | B169: 朱玉 | C169: 23120201619 | D169: 从江县高增乡卫生院 | E169: 专业技术岗位 | F169: 12055 | G169: 76.96 | H169: 38.48 | I169: 68.8 | J169: 34.4 | K169: 72.88 | L169: 3
A170: 166 | B170: 廖胶英 | C170: 23120201814 | D170: 从江县高增乡卫生院 | E170: 专业技术岗位 | F170: 12056 | G170: 75.11 | H170: 37.56 | I170: 78.6 | J170: 39.3 | K170: 76.86 | L170: 1
A171: 167 | B171: 杨正勇 | C171: 23120201901 | D171: 从江县高增乡卫生院 | E171: 专业技术岗位 | F171: 12056 | G171: 74.81 | H171: 37.41 | I171: 76.4 | J171: 38.2 | K171: 75.61 | L171: 2
A172: 168 | B172: 吴相 | C172: 23120201817 | D172: 从江县高增乡卫生院 | E172: 专业技术岗位 | F172: 12056 | G172: 75.31 | H172: 37.66 | I172: 缺考
A173: 169 | B173: 李青婷 | C173: 23120201918 | D173: 从江县东朗镇卫生院 | E173: 专业技术岗位 | F173: 12057 | G173: 76.07 | H173: 38.04 | I173: 77.4 | J173: 38.7 | K173: 76.74 | L173: 1
A174: 170 | B174: 彭龙 | C174: 23120201916 | D174: 从江县东朗镇卫生院 | E174: 专业技术岗位 | F174: 12057 | G174: 75.48 | H174: 37.74 | I174: 66.2 | J174: 33.1 | K174: 70.84 | L174: 2
A175: 171 | B175: 李成达 | C175: 23120201921 | D175: 从江县东朗镇卫生院 | E175: 专业技术岗位 | F175: 12057 | G175: 71.41 | H175: 35.71 | I175: 65.6 | J175: 32.8 | K175: 68.51 | L175: 3
A176: 172 | B176: 罗春燕 | C176: 23120202118 | D176: 从江县翠里乡卫生院 | E176: 专业技术岗位 | F176: 12058 | G176: 84.48 | H176: 42.24 | I176: 86.4 | J176: 43.2 | K176: 85.44 | L176: 1
A177: 173 | B177: 刘洁 | C177: 23120202202 | D177: 从江县翠里乡卫生院 | E177: 专业技术岗位 | F177: 12058 | G177: 78.03 | H177: 39.02 | I177: 77.2 | J177: 38.6 | K177: 77.62 | L177: 2
A178: 174 | B178: 谭安艳 | C178: 23120202009 | D178: 从江县翠里乡卫生院 | E178: 专业技术岗位 | F178: 12058 | G178: 78.17 | H178: 39.09 | I178: 64.6 | J178: 32.3 | K178: 71.39 | L178: 3
A179: 175 | B179: 梁朱余 | C179: 23120202425 | D179: 从江县庆云镇卫生院 | E179: 专业技术岗位 | F179: 12059 | G179: 72.28 | H179: 36.14 | I179: 81.6 | J179: 40.8 | K179: 76.94 | L179: 1
A180: 176 | B180: 李佳丽 | C180: 23120202423 | D180: 从江县庆云镇卫生院 | E180: 专业技术岗位 | F180: 12059 | G180: 75.31 | H180: 37.66 | I180: 74 | J180: 37 | K180: 74.66 | L180: 2
A181: 177 | B181: 龙争英 | C181: 23120202422 | D181: 从江县庆云镇卫生院 | E181: 专业技术岗位 | F181: 12059 | G181: 72.03 | H181: 36.02 | I181: 76.6 | J181: 38.3 | K181: 74.32 | L181: 3
A182: 178 | B182: 向飞飞 | C182: 23120202429 | D182: 从江县庆云镇卫生院 | E182: 专业技术岗位 | F182: 12060 | G182: 72.39 | H182: 36.2 | I182: 67.2 | J182: 33.6 | K182: 69.8 | L182: 1
A183: 179 | B183: 杨柳凤 | C183: 23120202504 | D183: 从江县庆云镇卫生院 | E183: 专业技术岗位 | F183: 12060 | G183: 71.07 | H183: 35.54 | I183: 62.6 | J183: 31.3 | K183: 66.84 | L183: 2
A184: 180 | B184: 吴昕嵘 | C184: 23120202427 | D184: 从江县庆云镇卫生院 | E184: 专业技术岗位 | F184: 12060 | G184: 80.89 | H184: 40.45 | I184: 缺考
A185: 181 | B185: 王雪梅 | C185: 23120202526 | D185: 从江县停洞镇中心卫生院 | E185: 专业技术岗位 | F185: 12061 | G185: 72.64 | H185: 36.32 | I185: 84.4 | J185: 42.2 | K185: 78.52 | L185: 1
A186: 182 | B186: 张宽陆 | C186: 23120202613 | D186: 从江县停洞镇中心卫生院 | E186: 专业技术岗位 | F186: 12061 | G186: 69.41 | H186: 34.71 | I186: 76.6 | J186: 38.3 | K186: 73.01 | L186: 2
A187: 183 | B187: 锁才敏 | C187: 23120202612 | D187: 从江县停洞镇中心卫生院 | E187: 专业技术岗位 | F187: 12061 | G187: 71.24 | H187: 35.62 | I187: 70.2 | J187: 35.1 | K187: 70.72 | L187: 3
A188: 184 | B188: 冯恳 | C188: 23120202704 | D188: 从江县宰便镇中心卫生院 | E188: 专业技术岗位 | F188: 12062 | G188: 71.63 | H188: 35.82 | I188: 81.6 | J188: 40.8 | K188: 76.62 | L188: 1
A189: 185 | B189: 罗玉芳 | C189: 23120202630 | D189: 从江县宰便镇中心卫生院 | E189: 专业技术岗位 | F189: 12062 | G189: 66.64 | H189: 33.32 | I189: 66.8 | J189: 33.4 | K189: 66.72 | L189: 2
A190: 186 | B190: 吴荣伟 | C190: 23120202709 | D190: 从江县宰便镇中心卫生院 | E190: 专业技术岗位 | F190: 12062 | G190: 70.17 | H190: 35.09 | I190: 缺考
A191: 187 | B191: 王正玉 | C191: 23120202815 | D191: 从江县洛香镇卫生院 | E191: 专业技术岗位 | F191: 12063 | G191: 73.91 | H191: 36.96 | I191: 78.2 | J191: 39.1 | K191: =H191+J191 -> 76.06 | L191: 1
A192: 188 | B192: 徐平 | C192: 23120202726 | D192: 从江县洛香镇卫生院 | E192: 专业技术岗位 | F192: 12063 | G192: 78.23 | H192: 39.12 | I192: 73.2 | J192: 36.6 | K192: =H192+J192 -> 75.72 | L192: 2
A193: 189 | B193: 吴情志 | C193: 23120202821 | D193: 从江县洛香镇卫生院 | E193: 专业技术岗位 | F193: 12063 | G193: 73.29 | H193: 36.65 | I193: 缺考
A194: 190 | B194: 罗德兰 | C194: 23120300103 | D194: 从江县第一民族中学 | E194: 专业技术岗位 | F194: 12064 | G194: 82.94 | H194: 41.47 | I194: 81.4 | J194: 40.7 | K194: 82.17 | L194: 1
A195: 191 | B195: 蒙玉忠 | C195: 23120300122 | D195: 从江县第一民族中学 | E195: 专业技术岗位 | F195: 12064 | G195: 82.13 | H195: 41.07 | I195: 76.8 | J195: 38.4 | K195: 79.47 | L195: 2
A196: 192 | B196: 任兴波 | C196: 23120300114 | D196: 从江县第一民族中学 | E196: 专业技术岗位 | F196: 12064 | G196: 80.86 | H196: 40.43 | I196: 72.4 | J196: 36.2 | K196: 76.63 | L196: 3
A197: 193 | B197: 代丽信 | C197: 23120300314 | D197: 从江县第一民族中学 | E197: 专业技术岗位 | F197: 12065 | G197: 81.23 | H197: 40.62 | I197: 83.2 | J197: 41.6 | K197: 82.22 | L197: 1
A198: 194 | B198: 杨叶 | C198: 23120300406 | D198: 从江县第一民族中学 | E198: 专业技术岗位 | F198: 12065 | G198: 78.4 | H198: 39.2 | I198: 81.2 | J198: 40.6 | K198: =H198+J198 -> 79.8 | L198: 2
A199: 195 | B199: 袁重林 | C199: 23120300319 | D199: 从江县第一民族中学 | E199: 专业技术岗位 | F199: 12065 | G199: 77.19 | H199: 38.6 | I199: 64.6 | J199: 32.3 | K199: 70.9 | L199: 3
A200: 196 | B200: 吕锐娜 | C200: 23120300516 | D200: 从江县第二民族高级中学 | E200: 专业技术岗位 | F200: 12066 | G200: 82.63 | H200: 41.32 | I200: 82.8 | J200: 41.4 | K200: 82.72 | L200: 1
... 909 more rows
